bitfinex-derivatives/quotes_BTCF0:USTF0_20250827
["timestamp","ask_amount","ask_price","bid_price","bid_amount"]
[1756297544629,2.91256022,111320.0,111310.0,0.01466844]
[1756297544824,3.2616449,111320.0,111310.0,0.01466844]
[1756297545136,0.0898473,111290.0,111280.0,0.3918]
[1756297545335,0.54132198,111290.0,111280.0,0.73446]
[1756297545536,0.54132198,111290.0,111280.0,0.81731]
[1756297546338,0.55047178,111290.0,111280.0,0.81731]
[1756297546638,1.05037178,111290.0,111280.0,0.81731]
[1756297547730,1.05037178,111290.0,111280.0,0.84601]
[1756297547731,0.98837178,111290.0,111280.0,0.84601]
[1756297547936,0.98837178,111290.0,111280.0,0.84701]
[1756297548237,0.6402871,111290.0,111280.0,0.84701]
[1756297548438,0.98937178,111290.0,111280.0,0.48621]
[1756297549136,0.98937178,111290.0,111280.0,0.84601]
[1756297549336,0.99137178,111290.0,111280.0,0.84601]
[1756297549836,1.05337178,111290.0,111280.0,0.84601]
[1756297550839,0.7042871,111290.0,111280.0,0.84601]
[1756297551032,1.05337178,111290.0,111280.0,0.84601]
[1756297551434,1.05337178,111290.0,111280.0,0.45293]
[1756297551634,1.05337178,111290.0,111280.0,0.15366]
[1756297551840,1.05337178,111290.0,111280.0,0.21464]
[1756297552034,1.05337178,111290.0,111280.0,0.26521]
[1756297552539,1.05337178,111290.0,111280.0,0.15366]
[1756297553041,1.05337178,111290.0,111280.0,0.18594]
[1756297553335,1.05337178,111290.0,111280.0,0.21464]
[1756297553541,1.05337178,111290.0,111280.0,0.24564]
[1756297553734,1.05337178,111290.0,111280.0,0.21464]
[1756297553935,1.12522728,111290.0,111280.0,0.11]
[1756297555042,1.12522728,111290.0,111280.0,0.15366]
[1756297555235,1.12522728,111290.0,111280.0,0.21694]
[1756297555437,1.12522728,111290.0,111280.0,0.26521]
[1756297556138,1.12522728,111290.0,111280.0,0.15366]
[1756297556441,1.12522728,111290.0,111280.0,0.13262]
[1756297556637,1.12522728,111290.0,111280.0,0.15366]
[1756297556942,1.12522728,111290.0,111280.0,0.26521]
[1756297557334,1.12522728,111290.0,111280.0,0.19521]
[1756297557542,0.7761426,111290.0,111280.0,0.19521]
[1756297557741,1.12522728,111290.0,111280.0,0.19521]
[1756297558250,0.1922534,111270.0,111260.0,1.35661]
[1756297558546,0.55936366,111270.0,111260.0,1.67661]
[1756297558747,0.21027898,111270.0,111260.0,1.67661]
[1756297559047,0.55936366,111270.0,111260.0,1.67661]
[1756297559448,0.21027898,111270.0,111260.0,0.83701]
[1756297559649,0.55936366,111270.0,111260.0,0.80473]
[1756297559842,0.55936366,111270.0,111260.0,0.80804]
[1756297560042,0.55936366,111270.0,111260.0,0.84129]
[1756297560748,0.21027898,111270.0,111260.0,0.84129]
[1756297560941,0.55936366,111270.0,111260.0,0.84129]
[1756297561644,0.56136366,111270.0,111260.0,0.84029]
[1756297562051,0.56236366,111270.0,111260.0,0.84029]
[1756297562254,0.21327898,111270.0,111260.0,0.84029]
[1756297562544,0.56236366,111270.0,111260.0,0.84029]
[1756297563948,0.56236366,111270.0,111260.0,0.47949]
[1756297564856,0.56236366,111270.0,111260.0,0.28949]
[1756297566354,0.56236366,111270.0,111260.0,0.27949]
[1756297566854,0.56236366,111270.0,111260.0,0.29949]
[1756297576972,1.06226366,111270.0,111260.0,0.29949]
[1756297577373,0.71317898,111270.0,111260.0,0.3893609]
[1756297577570,1.06226366,111270.0,111260.0,0.3893609]
[1756297579176,1.06226366,111270.0,111260.0,0.29949]
[1756297582677,0.71317898,111270.0,111260.0,0.66029]
[1756297583175,0.71317898,111270.0,111260.0,0.29949]
[1756297584377,1.06226366,111270.0,111260.0,0.29949]
[1756297584569,1.06226366,111270.0,111260.0,0.66029]
[1756297584770,0.71317898,111270.0,111260.0,1.09924558]
[1756297585265,0.71317898,111270.0,111260.0,1.34924558]
[1756297585479,0.61078898,111270.0,111260.0,1.34924558]
[1756297586374,0.61078838,111270.0,111260.0,1.34924558]
[1756297588982,0.60778838,111270.0,111260.0,1.34924558]
[1756297589276,0.51792558,111270.0,111260.0,1.34924558]
[1756297590381,0.46831548,111270.0,111260.0,1.34924558]
[1756297590587,0.46831548,111270.0,111260.0,1.51093352]
[1756297591684,0.43331548,111270.0,111260.0,1.53061585]
[1756297591881,0.39899548,111270.0,111260.0,1.53061585]
[1756297593987,0.39899548,111270.0,111260.0,2.37017585]
[1756297594285,0.39899548,111270.0,111260.0,2.37117585]
[1756297595174,0.39899548,111270.0,111260.0,2.69117585]
[1756297595175,0.20242704,111270.0,111260.0,2.69117585]
[1756297595380,0.19600704,111270.0,111260.0,2.20948791]
[1756297596279,0.19600704,111270.0,111260.0,1.53161585]
[1756297596586,0.22488704,111270.0,111260.0,2.37097585]
[1756297596989,0.22488704,111270.0,111260.0,1.53161585]
[1756297597185,0.22488704,111270.0,111260.0,2.37097585]
[1756297597588,0.22488704,111270.0,111260.0,2.37093585]
[1756297599184,0.22488704,111270.0,111260.0,1.53161585]
[1756297599392,0.22488704,111270.0,111260.0,2.37089585]
[1756297600191,0.22488704,111270.0,111260.0,1.86012323]
[1756297600388,0.21027836,111270.0,111260.0,2.20916791]
[1756297602388,0.21027836,111270.0,111260.0,1.36992791]
[1756297602694,0.21027836,111270.0,111260.0,2.20904791]
[1756297603893,0.02888,111270.0,111260.0,2.20904791]
[1756297604393,0.1814,111280.0,111270.0,0.0898628]
[1756297604697,0.1814,111280.0,111270.0,1.46883216]
[1756297605589,0.1814,111280.0,111270.0,1.71883216]
[1756297606382,0.02888,111290.0,111280.0,0.11004801]
[1756297606592,0.21028,111290.0,111280.0,2.33805737]
[1756297607596,0.02888,111290.0,111280.0,2.33805737]
[1756297608193,0.02888,111290.0,111280.0,2.33801737]
[1756297608595,0.02888,111290.0,111280.0,2.34001737]
[1756297608995,0.30517553,111300.0,111290.0,0.0898467]
[1756297609197,0.33674553,111300.0,111290.0,1.12973138]
[1756297610201,0.24951553,111300.0,111290.0,1.12973138]
[1756297611196,0.31401553,111300.0,111290.0,1.12973138]
[1756297611593,0.31401553,111300.0,111290.0,1.96861138]
[1756297612001,0.31401553,111300.0,111290.0,2.050827]
[1756297612595,0.31401553,111300.0,111290.0,1.97752691]
[1756297614702,0.31401553,111300.0,111290.0,1.97744691]
[1756297615506,0.31401553,111300.0,111290.0,1.97740691]
[1756297616407,0.13261553,111300.0,111290.0,1.97740691]
[1756297616907,0.31401553,111300.0,111290.0,1.97740691]
[1756297617498,0.28244553,111300.0,111290.0,1.56174724]
[1756297617798,0.31401553,111300.0,111290.0,2.40042724]
[1756297618706,0.31401553,111300.0,111290.0,1.21266256]
[1756297618907,0.31401553,111300.0,111290.0,2.40209724]
[1756297619208,0.40385413,111300.0,111290.0,1.49224138]
[1756297619404,1.00293881,111300.0,111290.0,1.9800867]
[1756297619707,0.65385413,111300.0,111290.0,1.9817967]
[1756297620009,0.69583413,111300.0,111290.0,1.6545367]
[1756297620200,0.69583413,111300.0,111290.0,1.9845367]
[1756297620603,0.69583413,111300.0,111290.0,1.9844967]
[1756297621106,0.69583413,111300.0,111290.0,1.9827867]
[1756297621301,0.69683413,111300.0,111290.0,1.9827867]
[1756297621903,0.69583413,111300.0,111290.0,1.9827867]
[1756297622208,0.69683413,111300.0,111290.0,1.1441867]
[1756297622610,0.69683413,111300.0,111290.0,1.6527067]
[1756297622908,0.69683413,111300.0,111290.0,1.9844167]
[1756297623807,0.32542553,111300.0,111290.0,2.33350138]
[1756297624109,0.22962553,111300.0,111290.0,2.33350138]
[1756297625712,0.22862553,111300.0,111290.0,2.33350138]
[1756297628213,0.22862553,111300.0,111290.0,2.49472656]
[1756297630512,0.19974553,111300.0,111290.0,2.49472656]
[1756297630918,0.1814,111300.0,111290.0,2.49472656]
[1756297631117,0.17993,111300.0,111290.0,2.74472656]
[1756297631514,0.17993,111300.0,111290.0,2.58350138]
[1756297631733,0.0455,111300.0,111290.0,2.58350138]
[1756297632119,0.0291,111320.0,111310.0,0.0898305]
[1756297632318,0.61531,111320.0,111310.0,1.51057147]
[1756297632518,0.61531,111320.0,111310.0,2.34885147]
[1756297633722,0.11681,111320.0,111310.0,2.34885147]
[1756297633919,0.61531,111320.0,111310.0,2.34885147]
[1756297634920,0.58249,111320.0,111310.0,2.34885147]
[1756297635422,0.61631,111320.0,111310.0,2.34885147]
[1756297640828,0.54947,111320.0,111310.0,2.34885147]
[1756297641020,0.5286,111320.0,111310.0,2.34885147]
[1756297641915,0.5286,111320.0,111310.0,2.35805444]
[1756297644621,0.4995,111320.0,111310.0,2.95713912]
[1756297645025,0.4995,111320.0,111310.0,3.11840789]
[1756297645329,0.4995,111320.0,111310.0,2.76932321]
[1756297645730,0.5286,111320.0,111310.0,2.76932321]
[1756297646129,0.0301,111320.0,111310.0,2.76932321]
[1756297646734,0.0301,111320.0,111310.0,2.76888321]
[1756297647231,0.0291,111320.0,111310.0,2.76980321]
[1756297647425,0.09594,111320.0,111310.0,2.76980321]
[1756297647634,0.09594,111320.0,111310.0,2.35033147]
[1756297648331,0.09594,111320.0,111310.0,2.51145596]
[1756297648532,0.09594,111320.0,111310.0,2.51045596]
[1756297648732,0.09594,111320.0,111310.0,1.67369596]
[1756297648933,0.09594,111320.0,111310.0,2.34929147]
[1756297649133,0.09594,111320.0,111310.0,2.35029147]
[1756297649633,0.09594,111320.0,111310.0,2.34929147]
[1756297649834,0.09694,111320.0,111310.0,2.34929147]
[1756297650438,0.04851822,111320.0,111310.0,2.36390147]
[1756297650732,0.01549822,111320.0,111310.0,2.36290147]
[1756297651532,0.01549822,111320.0,111310.0,1.52518147]
[1756297651730,0.01549822,111320.0,111310.0,2.36282147]
[1756297652035,0.01549822,111320.0,111310.0,2.36382147]
[1756297652333,0.01449822,111320.0,111310.0,2.36382147]
[1756297652533,0.01449822,111320.0,111310.0,2.36482147]
[1756297653234,0.01449822,111320.0,111310.0,2.57421997]
[1756297653626,0.01449822,111320.0,111310.0,2.57321997]
[1756297653827,0.01449822,111320.0,111310.0,2.57421997]
[1756297654027,0.01449822,111320.0,111310.0,2.57321997]
[1756297654238,0.01449822,111320.0,111310.0,2.57421997]
[1756297654427,0.01449822,111320.0,111310.0,2.36482147]
[1756297656936,0.01449822,111320.0,111310.0,2.57421997]
[1756297658038,0.55146613,111340.0,111330.0,0.2199757]
[1756297658340,0.55146613,111340.0,111330.0,2.09730038]
[1756297659435,0.55246613,111340.0,111330.0,2.09730038]
[1756297659636,0.55246613,111340.0,111330.0,1.25986038]
[1756297659837,0.55246613,111340.0,111330.0,1.17004468]
[1756297660040,0.64842613,111340.0,111330.0,2.00740468]
[1756297660347,0.64842613,111340.0,111330.0,2.09722038]
[1756297661341,1.24851081,111340.0,111330.0,0.41523]
[1756297661541,0.0898157,111330.0,111320.0,0.63184413]
[1756297661753,0.0898157,111330.0,111320.0,0.87202243]
[1756297661754,0.59670038,111330.0,111320.0,0.87202243]
[1756297662145,0.59670038,111330.0,111320.0,1.37934243]
[1756297662348,0.59670038,111330.0,111320.0,1.21808619]
[1756297662745,0.59670038,111330.0,111320.0,1.30790999]
[1756297663045,0.59770038,111330.0,111320.0,1.30790999]
[1756297663944,0.59870038,111330.0,111320.0,1.46916623]
[1756297664345,0.84870038,111330.0,111320.0,0.52205624]
[1756297664649,0.84870038,111330.0,111320.0,1.2878638]
[1756297664945,0.86608743,111330.0,111320.0,1.2878638]
[1756297665144,0.86808743,111330.0,111320.0,0.3608]
[1756297665348,0.2476238,111320.0,111310.0,0.47068809]
[1756297665540,0.59670848,111320.0,111310.0,1.48792809]
[1756297665945,0.59670848,111320.0,111310.0,1.52113809]
[1756297666142,0.59670848,111320.0,111310.0,1.55384809]
[1756297666848,0.2476238,111320.0,111310.0,1.55384809]
[1756297667240,0.7485238,111320.0,111310.0,1.55384809]
[1756297667751,0.7475238,111320.0,111310.0,1.55384809]
[1756297667948,0.7485238,111320.0,111310.0,1.55384809]
[1756297668849,0.7495238,111320.0,111310.0,1.55384809]
[1756297669550,0.7495238,111320.0,111310.0,1.71510433]
[1756297669738,0.7505238,111320.0,111310.0,1.71510433]
[1756297669942,0.7505238,111320.0,111310.0,1.74401433]
[1756297670849,0.626,111320.0,111310.0,2.09309901]
[1756297671551,0.7505237,111320.0,111310.0,2.09309901]
[1756297672752,0.7505237,111320.0,111310.0,1.22694901]
[1756297672953,0.7505237,111320.0,111310.0,2.09293901]
[1756297673345,0.7495237,111320.0,111310.0,2.09293901]
[1756297674254,0.7485237,111320.0,111310.0,2.09293901]
[1756297674453,0.6811737,111320.0,111310.0,2.09293901]
[1756297674653,0.7505237,111320.0,111310.0,2.09293901]
[1756297675144,0.7505237,111320.0,111310.0,2.00310721]
[1756297675651,0.7505237,111320.0,111310.0,1.97415721]
[1756297676048,0.56342544,111320.0,111310.0,1.97415721]
[1756297676251,0.56342544,111320.0,111310.0,2.00306721]
[1756297676552,0.62426544,111320.0,111310.0,1.71822253]
[1756297676945,0.62426544,111320.0,111310.0,1.71818253]
[1756297677145,0.62326544,111320.0,111310.0,1.71818253]
[1756297677353,0.62426544,111320.0,111310.0,1.71818253]
[1756297678059,0.65187544,111320.0,111310.0,1.71818253]
[1756297678262,0.65087544,111320.0,111310.0,1.71818253]
[1756297678463,0.65287544,111320.0,111310.0,1.71818253]
[1756297678645,0.65287544,111320.0,111310.0,1.68547253]
[1756297678853,1.00196012,111320.0,111310.0,1.71836253]
[1756297679144,1.25196012,111320.0,111310.0,1.71836253]
[1756297679344,1.25196012,111320.0,111310.0,1.62929253]
[1756297679948,1.25196012,111320.0,111310.0,1.10723629]
[1756297680153,1.25196012,111320.0,111310.0,1.14160629]
[1756297680354,1.25196012,111320.0,111310.0,1.10723629]
[1756297680858,1.25196012,111320.0,111310.0,0.25068629]
[1756297681061,1.25196012,111320.0,111310.0,1.03697629]
[1756297681359,1.25196012,111320.0,111310.0,1.06521629]
[1756297682354,1.25196012,111320.0,111310.0,1.13108629]
[1756297682855,1.25196012,111320.0,111310.0,1.09958629]
[1756297683359,1.25196012,111320.0,111310.0,0.18]
[1756297683557,0.2493412,111310.0,111300.0,0.8878]
[1756297683757,0.61666851,111310.0,111300.0,0.92609]
[1756297684063,0.61666851,111310.0,111300.0,1.01406]
[1756297684760,0.61766851,111310.0,111300.0,1.01406]
[1756297684958,0.61866851,111310.0,111300.0,1.01406]
[1756297686667,0.61766851,111310.0,111300.0,1.01406]
[1756297686861,0.61866851,111310.0,111300.0,1.01406]
[1756297687360,0.61766851,111310.0,111300.0,1.01406]
[1756297687566,0.61966851,111310.0,111300.0,1.01406]
[1756297688367,0.61966851,111310.0,111300.0,0.99406]
[1756297689767,0.61966851,111310.0,111300.0,0.95969]
[1756297689957,0.61966851,111310.0,111300.0,0.99406]
[1756297691160,0.86966851,111310.0,111300.0,0.09135]
[1756297691463,0.2493492,111300.0,111290.0,0.9939]
[1756297691770,0.59843388,111300.0,111290.0,1.1339]
[1756297692967,0.0898473,111290.0,111280.0,0.08606321]
[1756297693260,0.61682695,111290.0,111280.0,0.17741321]
[1756297693765,0.26774227,111290.0,111280.0,0.17741321]
[1756297694068,0.61682695,111290.0,111280.0,0.17741321]
[1756297694271,0.62678936,111290.0,111280.0,0.17741321]
[1756297694964,1.12668936,111290.0,111280.0,0.17741321]
[1756297695966,1.19914144,111290.0,111280.0,0.17741321]
[1756297696269,1.73748936,111290.0,111280.0,0.02019321]
[1756297697564,1.73748936,111290.0,111280.0,0.07115321]
[1756297699171,1.73748936,111290.0,111280.0,0.11154321]
[1756297699473,1.73748936,111290.0,111280.0,0.08944321]
[1756297700263,0.0898553,111280.0,111270.0,0.07251]
[1756297700463,1.43500998,111280.0,111270.0,0.09135]
[1756297700664,1.43500998,111280.0,111270.0,0.05096]
[1756297701571,1.43500998,111280.0,111270.0,0.09335]
[1756297704374,1.43496998,111280.0,111270.0,0.09335]
[1756297704869,1.43496998,111280.0,111270.0,0.12772]
[1756297705276,0.59844998,111280.0,111270.0,0.12772]
[1756297705476,1.43488998,111280.0,111270.0,0.15922]
[1756297706570,1.93478998,111280.0,111270.0,0.15922]
[1756297706966,1.93478998,111280.0,111270.0,0.12772]
[1756297709475,1.09834998,111280.0,111270.0,0.12772]
[1756297709679,1.93470998,111280.0,111270.0,0.12772]
[1756297711178,1.93466998,111280.0,111270.0,0.16275]
[1756297712574,1.5855853,111280.0,111270.0,0.16275]
[1756297712778,1.93466998,111280.0,111270.0,0.16275]
[1756297713184,1.93466998,111280.0,111270.0,0.12772]
[1756297713772,1.93466998,111280.0,111270.0,0.09335]
[1756297714776,1.93466998,111280.0,111270.0,0.002]
[1756297715176,1.45914998,111280.0,111270.0,0.16391]
[1756297715379,2.29534998,111280.0,111270.0,0.16391]
[1756297715683,2.29534998,111280.0,111270.0,0.12888]
[1756297715982,1.45914998,111280.0,111270.0,0.12888]
[1756297716182,2.29534998,111280.0,111270.0,0.16391]
[1756297716681,2.29534998,111280.0,111270.0,0.12888]
[1756297716877,2.29534998,111280.0,111270.0,0.096]
[1756297717988,2.29534998,111280.0,111270.0,0.12888]
[1756297718283,2.29534998,111280.0,111270.0,0.096]
[1756297718873,2.29534998,111280.0,111270.0,0.07352]
[1756297719581,1.9462653,111280.0,111270.0,0.07352]
[1756297719790,2.29534998,111280.0,111270.0,0.096]
[1756297720087,2.29534998,111280.0,111270.0,0.16391]
[1756297720686,2.29534998,111280.0,111270.0,0.12888]
[1756297720985,2.29518998,111280.0,111270.0,0.07352]
[1756297722089,2.29518998,111280.0,111270.0,0.03178]
[1756297724393,2.29518998,111280.0,111270.0,0.12888]
[1756297724782,2.29518998,111280.0,111270.0,0.096]
[1756297725294,2.46981936,111280.0,111270.0,0.002]
[1756297727294,2.46981936,111280.0,111270.0,0.05369]
[1756297727493,2.47081936,111280.0,111270.0,0.05369]
[1756297727697,1.9471053,111280.0,111270.0,0.05369]
[1756297727992,1.9471053,111280.0,111270.0,0.03078]
[1756297728191,2.47081936,111280.0,111270.0,0.03078]
[1756297728391,2.47081936,111280.0,111270.0,0.095]
[1756297728587,2.47081936,111280.0,111270.0,0.094]
[1756297728788,2.47181936,111280.0,111270.0,0.094]
[1756297729398,2.47181936,111280.0,111270.0,0.05269]
[1756297729607,0.2508333,111270.0,111260.0,0.52271]
[1756297729904,0.51269033,111270.0,111260.0,1.11456703]
[1756297730500,0.51269033,111270.0,111260.0,0.85271]
[1756297732305,0.51369033,111270.0,111260.0,0.85271]
[1756297733296,0.51369033,111270.0,111260.0,0.49191]
[1756297733803,0.1529214,111260.0,111250.0,0.67082815]
[1756297734004,0.77455546,111260.0,111250.0,0.46877191]
[1756297734197,1.61011546,111260.0,111250.0,0.34978]
[1756297734404,0.1529295,111250.0,111240.0,0.52271]
[1756297734605,0.51270653,111250.0,111240.0,0.84271]
[1756297734907,0.51270653,111250.0,111240.0,0.48191]
[1756297734908,0.87350653,111250.0,111240.0,0.48191]
[1756297735093,1.13536356,111250.0,111240.0,0.48191]
[1756297735299,0.96098222,111250.0,111240.0,0.48191]
[1756297736204,1.46088222,111250.0,111240.0,0.48191]
[1756297736407,1.45988222,111250.0,111240.0,0.48191]
[1756297737606,1.47798149,111250.0,111240.0,0.32]
[1756297737806,1.11718149,111250.0,111240.0,0.44688]
[1756297738006,1.95262149,111250.0,111240.0,0.44688]
[1756297738310,1.95262149,111250.0,111240.0,0.48191]
[1756297738917,1.11718149,111250.0,111240.0,0.48191]
[1756297739209,1.95262149,111250.0,111240.0,0.48191]
[1756297739410,1.96159214,111250.0,111240.0,0.48191]
[1756297740207,1.12615214,111250.0,111240.0,0.48191]
[1756297740413,1.12615214,111250.0,111240.0,0.5717975]
[1756297742011,1.12615214,111250.0,111240.0,0.414]
[1756297742211,1.27535214,111250.0,111240.0,0.414]
[1756297743213,1.27535214,111250.0,111240.0,0.214]
[1756297743814,1.27535214,111250.0,111240.0,0.094]
[1756297744114,0.0898875,111240.0,111230.0,0.4822318]
[1756297744312,0.60074022,111240.0,111230.0,1.7719318]
[1756297744916,0.60074022,111240.0,111230.0,0.48596]
[1756297745220,1.43602022,111240.0,111230.0,0.02786]
[1756297745406,1.43602022,111240.0,111220.0,1.3518433]
[1756297745407,0.2514155,111230.0,111220.0,0.5723433]
[1756297745612,0.60074822,111230.0,111220.0,1.7719433]
[1756297746618,1.10064822,111230.0,111220.0,1.7719433]
[1756297746918,1.09964822,111230.0,111220.0,1.7719433]
[1756297747318,1.09864822,111230.0,111220.0,1.7719433]
[1756297747519,1.09864822,111230.0,111220.0,0.84876]
[1756297747720,1.09864822,111230.0,111220.0,1.68404]
[1756297748215,1.09864822,111230.0,111220.0,1.68604]
[1756297748420,1.09864822,111230.0,111220.0,1.65172]
[1756297748721,1.09864822,111230.0,111220.0,1.68604]
[1756297749513,1.09864822,111230.0,111220.0,0.85076]
[1756297749812,1.09864822,111230.0,111220.0,0.56644]
[1756297750018,1.09864822,111230.0,111220.0,0.4549]
[1756297750620,1.09864822,111230.0,111220.0,0.48922]
[1756297751007,1.09864822,111230.0,111220.0,0.48644]
[1756297751211,1.09864822,111230.0,111220.0,0.52076]
[1756297751422,1.09864822,111230.0,111220.0,0.51876]
[1756297751617,1.09864822,111230.0,111220.0,0.51676]
[1756297752716,1.17220357,111230.0,111220.0,0.51676]
[1756297753919,1.17220357,111230.0,111220.0,0.48522]
[1756297755223,0.0899036,111220.0,111210.0,0.48244]
[1756297755519,0.0899036,111220.0,111210.0,0.15596]
[1756297755520,1.43579632,111220.0,111210.0,0.15596]
[1756297755717,1.43579632,111220.0,111210.0,0.12442]
[1756297755913,1.43579632,111220.0,111210.0,0.15596]
[1756297756424,1.0864636,111220.0,111210.0,0.15596]
[1756297756628,1.43579632,111220.0,111210.0,0.15696]
[1756297756928,1.93569632,111220.0,111210.0,0.15696]
[1756297757115,1.93569632,111220.0,111210.0,0.12542]
[1756297757320,1.10065632,111220.0,111210.0,0.15696]
[1756297757619,1.10065632,111220.0,111210.0,0.06893]
[1756297757818,1.10065632,111220.0,111210.0,0.0911]
[1756297758019,0.7513236,111220.0,111210.0,0.15796]
[1756297758226,1.10065632,111220.0,111210.0,0.15796]
[1756297758526,1.10065632,111220.0,111210.0,0.05075]
[1756297759026,1.10065632,111220.0,111210.0,0.12542]
[1756297759619,1.10065632,111220.0,111210.0,0.0911]
[1756297759926,1.10065632,111220.0,111210.0,0.06893]
[1756297760626,1.10065632,111220.0,111210.0,0.05075]
[1756297760826,1.10065632,111220.0,111210.0,0.02886]
[1756297761028,1.5862836,111220.0,111210.0,0.12542]
[1756297761320,1.93561632,111220.0,111210.0,0.0911]
[1756297761526,1.93561632,111220.0,111210.0,0.12542]
[1756297761928,1.93561632,111220.0,111210.0,0.15696]
[1756297762125,1.93561632,111220.0,111210.0,0.12542]
[1756297763035,1.93561632,111220.0,111210.0,0.02886]
[1756297763419,0.7513236,111220.0,111210.0,0.15696]
[1756297763625,1.93561632,111220.0,111210.0,0.0911]
[1756297766636,1.93561632,111220.0,111210.0,0.06893]
[1756297767135,1.93561632,111220.0,111210.0,0.02886]
[1756297767333,1.27559286,111220.0,111210.0,0.0911]
[1756297767531,2.11055286,111220.0,111210.0,0.15696]
[1756297767836,2.11051286,111220.0,111210.0,0.15696]
[1756297768134,0.7513236,111220.0,111210.0,0.15696]
[1756297768334,2.11051286,111220.0,111210.0,0.15696]
[1756297769329,1.5862436,111220.0,111210.0,0.15696]
[1756297769534,1.93571358,111220.0,111210.0,0.15696]
[1756297769734,1.93571358,111220.0,111210.0,0.12542]
[1756297770035,1.93571358,111220.0,111210.0,0.15725]
[1756297772728,1.5862436,111220.0,111210.0,0.15725]
[1756297772932,1.93571358,111220.0,111210.0,0.12542]
[1756297773132,1.93571358,111220.0,111210.0,0.05075]
[1756297773742,1.93571358,111220.0,111210.0,0.15828]
[1756297773931,1.5862436,111220.0,111210.0,0.15828]
[1756297774241,0.7486334,111220.0,111210.0,1.1889915]
[1756297774440,0.7486334,111220.0,111210.0,0.815]
[1756297774642,1.09810338,111220.0,111210.0,0.46828]
[1756297775146,1.09810338,111220.0,111210.0,0.15828]
[1756297775343,1.09810338,111220.0,111210.0,0.48828]
[1756297775550,1.09810338,111220.0,111210.0,0.001]
[1756297777646,1.10810338,111220.0,111210.0,0.001]
[1756297779946,1.94286338,111220.0,111210.0,0.02987]
[1756297780247,1.94286338,111220.0,111210.0,0.05038]
[1756297780847,1.94286338,111220.0,111210.0,0.02987]
[1756297781149,1.94286338,111220.0,111210.0,0.001]
[1756297783747,2.90366338,111220.0,111210.0,0.001]
[1756297783949,0.59207148,111210.0,111200.0,0.3608]
[1756297784150,0.61022782,111210.0,111200.0,0.3608]
[1756297785448,0.61022782,111210.0,111200.0,0.3618]
[1756297785651,1.44490782,111210.0,111200.0,0.3618]
[1756297786853,0.75942782,111210.0,111200.0,0.3618]
[1756297787054,1.59410782,111210.0,111200.0,0.4528]
[1756297787256,1.59410782,111210.0,111200.0,0.48688]
[1756297787549,1.24463784,111210.0,111200.0,0.48688]
[1756297787754,0.26075784,111210.0,111200.0,0.9386295]
[1756297787956,0.61022782,111210.0,111200.0,0.9386295]
[1756297788155,0.61022782,111210.0,111200.0,0.51871]
[1756297792759,0.61022782,111210.0,111200.0,0.9186296]
[1756297792958,0.61022782,111210.0,111200.0,0.6086296]
[1756297793159,0.61022782,111210.0,111200.0,0.51871]
[1756297796458,0.26075784,111210.0,111200.0,0.51871]
[1756297796659,0.61022782,111210.0,111200.0,0.51871]
[1756297797056,0.61022782,111210.0,111200.0,0.6086296]
[1756297797261,0.61022782,111210.0,111200.0,0.9386296]
[1756297798665,0.61022782,111210.0,111200.0,0.6086296]
[1756297799162,0.61022782,111210.0,111200.0,0.9186296]
[1756297800262,0.61022782,111210.0,111200.0,0.6186296]
[1756297800459,0.20120784,111210.0,111200.0,0.9386296]
[1756297800662,0.12825784,111210.0,111200.0,2.37257958]
[1756297800958,0.19371784,111210.0,111200.0,1.53809958]
[1756297801166,0.57044782,111210.0,111200.0,2.0231096]
[1756297801363,0.57044782,111210.0,111200.0,1.1886296]
[1756297801564,0.61124782,111210.0,111200.0,0.49463]
[1756297801865,0.61124782,111210.0,111200.0,0.6179596]
[1756297806567,0.61124782,111210.0,111200.0,0.52804]
[1756297806762,0.61124782,111210.0,111200.0,0.6179596]
[1756297807366,0.76044782,111210.0,111200.0,0.6179596]
[1756297807568,0.61124782,111210.0,111200.0,0.6179596]
[1756297808769,0.26177784,111210.0,111200.0,0.6179596]
[1756297809066,0.61124782,111210.0,111200.0,0.6179596]
[1756297809264,0.10806784,111210.0,111200.0,1.27742958]
[1756297809463,0.10806784,111210.0,111200.0,1.52742958]
[1756297810760,0.52299782,111210.0,111200.0,2.0123196]
[1756297810965,0.55025782,111210.0,111200.0,2.0123196]
[1756297811665,0.20078784,111210.0,111200.0,2.0123196]
[1756297811863,0.17352784,111210.0,111200.0,2.0123196]
[1756297812764,0.17352784,111210.0,111200.0,1.08804]
[1756297812968,0.17352784,111210.0,111200.0,1.92236]
[1756297813566,0.17352784,111210.0,111200.0,2.0122796]
[1756297813870,0.52299782,111210.0,111200.0,2.0122796]
[1756297814058,0.17352784,111210.0,111200.0,2.0122796]
[1756297814467,0.17352784,111210.0,111200.0,1.1779596]
[1756297814668,0.17352784,111210.0,111200.0,2.0122796]
[1756297814863,0.17352784,111210.0,111200.0,1.1779596]
[1756297815064,0.67342784,111210.0,111200.0,2.0122396]
[1756297815663,0.64051784,111210.0,111200.0,2.0122396]
[1756297815972,0.60796784,111210.0,111200.0,2.0122396]
[1756297816168,0.44765553,111210.0,111200.0,2.0122396]
[1756297816875,0.50501703,111210.0,111200.0,2.36170958]
[1756297817567,0.41510553,111210.0,111200.0,2.36170958]
[1756297817968,0.5233086,111210.0,111200.0,1.1779596]
[1756297818174,0.5558586,111210.0,111200.0,2.0122396]
[1756297818374,0.5558586,111210.0,111200.0,2.36170958]
[1756297818669,0.5229486,111210.0,111200.0,2.36170958]
[1756297818873,0.5229486,111210.0,111200.0,2.36166958]
[1756297819376,0.4903986,111210.0,111200.0,2.36166958]
[1756297820173,0.5229486,111210.0,111200.0,2.36166958]
[1756297821275,0.5408245,111210.0,111200.0,2.0121996]
[1756297821574,0.5408245,111210.0,111200.0,2.36166958]
[1756297822270,0.5082745,111210.0,111200.0,2.36166958]
[1756297822476,0.33504322,111210.0,111200.0,2.36166958]
[1756297824178,0.40050322,111210.0,111200.0,2.0121196]
[1756297824372,0.40050322,111210.0,111200.0,2.36158958]
[1756297824373,0.36759322,111210.0,111200.0,2.36158958]
[1756297824571,0.33504322,111210.0,111200.0,2.36158958]
[1756297825981,0.40050322,111210.0,111200.0,2.0121196]
[1756297826372,0.33504322,111210.0,111200.0,1.1779596]
[1756297826574,1.0897932,111210.0,111200.0,0.80463]
[1756297826778,1.0897932,111210.0,111200.0,0.15724]
[1756297827680,0.66197322,111210.0,111200.0,0.6079597]
[1756297827885,0.33504322,111210.0,111200.0,1.27742968]
[1756297828685,0.41161322,111210.0,111200.0,0.9279597]
[1756297828880,0.41161322,111210.0,111200.0,1.27742968]
[1756297829190,0.41161322,111210.0,111200.0,0.9279597]
[1756297829890,0.41161322,111210.0,111200.0,1.67236]
[1756297829891,0.8381732,111210.0,111200.0,1.67236]